bitfinex/quotes_ETHUSD_20251019
["timestamp","ask_amount","ask_price","bid_price","bid_amount"]
[1760902843908,3.173,3992.6,3992.5,0.4521]
[1760902844798,3.173,3992.6,3992.5,2.9567963]
[1760902845177,3.173,3992.6,3992.4,3.89120618]
[1760902845377,3.173,3992.6,3992.4,6.84805068]
[1760902846111,3.173,3992.6,3992.5,2.5046963]
[1760902846488,3.173,3992.6,3992.4,6.84804745]
[1760902847292,3.173,3992.6,3992.5,6.26910248]
[1760902849006,3.21665057,3992.6,3992.5,6.26910248]
[1760902849721,3.21665057,3992.6,3992.5,6.72120248]
[1760902851825,3.21665057,3992.6,3992.5,3.76440618]
[1760902852031,3.21665057,3992.6,3992.4,2.63154983]
[1760902852635,3.21665057,3992.6,3992.5,2.9567963]
[1760902853205,3.21665057,3992.6,3992.5,2.5046963]
[1760902853409,3.21665057,3992.6,3992.5,2.9567963]
[1760902855813,3.21665057,3992.6,3992.5,2.5046963]
[1760902856603,3.21665057,3992.6,3992.5,2.9567963]
[1760902858116,3.21665057,3992.6,3992.5,2.5046963]
[1760902860304,3.21665057,3992.6,3992.4,2.63151875]
[1760902861018,3.21665057,3992.6,3992.5,2.5046963]
[1760902861948,3.21665057,3992.6,3992.4,2.63154475]
[1760902862354,3.21665057,3992.6,3992.5,2.5046963]
[1760902862653,3.21665057,3992.6,3992.4,0.1268]
[1760902862955,3.21665057,3992.6,3992.5,2.5046963]
[1760902863877,3.21665057,3992.6,3992.5,6.8775988]
[1760902864072,3.173,3992.6,3992.5,6.8775988]
[1760902865466,0.001,3992.8,3992.7,2.50457084]
[1760902865774,0.001,3992.8,3992.7,2.52961654]
[1760902865934,0.001,3992.8,3992.7,2.62937084]
[1760902866128,0.001,3992.8,3992.7,3.08617084]
[1760902867540,0.04464209,3992.8,3992.7,3.08617084]
[1760902867759,0.04464209,3992.8,3992.7,6.85057702]
[1760902869146,0.001,3992.8,3992.7,6.85057702]
[1760902870861,0.001,3992.8,3992.7,6.39377702]
[1760902871367,0.3901,3992.8,3992.7,3.88920618]
[1760902872731,0.3901,3992.8,3992.7,6.39377702]
[1760902873327,0.43374574,3992.8,3992.7,6.39377702]
[1760902873534,0.43374574,3992.8,3992.7,2.62937084]
[1760902874865,0.82654895,3992.8,3992.7,2.62937084]
[1760902875234,0.78290321,3992.8,3992.7,2.62937084]
[1760902876074,0.78290321,3992.8,3992.7,0.1248]
[1760902876669,0.78290321,3992.8,3992.7,2.62937084]
[1760902877762,0.78290321,3992.8,3992.7,0.1248]
[1760902878369,0.3901,3992.8,3992.7,0.1248]
[1760902879473,0.3901,3992.8,3992.7,3.88920618]
[1760902880547,0.3901,3992.8,3992.7,6.39377702]
[1760902881263,0.001,3992.8,3992.7,6.39377702]
[1760902882647,0.001,3992.8,3992.7,3.88920618]
[1760902882861,0.3901,3992.8,3992.7,3.88920618]
[1760902883066,0.3901,3992.8,3992.7,6.39377702]
[1760902884195,0.001,3992.8,3992.7,6.39377702]
[1760902884973,0.04464666,3992.8,3992.7,6.39377702]
[1760902885289,0.001,3992.8,3992.7,2.62937084]
[1760902885675,0.39380041,3992.8,3992.7,2.62937084]
[1760902886074,0.001,3992.8,3992.7,2.62937084]
[1760902886962,0.001,3992.8,3992.7,0.1248]
[1760902887294,0.7097,3992.8,3992.6,3.76440618]
[1760902887502,0.01858827,3992.7,3992.6,3.76440618]
[1760902887672,0.18088827,3992.7,3992.6,3.76440618]
[1760902888002,0.1623,3992.7,3992.6,3.76440618]
[1760902888204,0.1623,3992.7,3992.6,6.26903975]
[1760902888375,0.20594802,3992.7,3992.6,6.26903975]
[1760902888991,0.59875929,3992.7,3992.6,3.76440618]
[1760902889308,0.20594802,3992.7,3992.6,3.76440618]
[1760902890101,0.56861165,3992.7,3992.6,3.76440618]
[1760902891082,0.56861165,3992.7,3992.4,0.002]
[1760902891385,3.169,3992.6,3992.4,0.002]
[1760902891791,0.1623,3992.5,3992.4,0.002]
[1760902892785,0.55513159,3992.5,3992.4,0.002]
[1760902893472,0.57371986,3992.5,3992.4,0.002]
[1760902894397,0.1623,3992.5,3992.4,0.002]
[1760902896801,3.169,3992.5,3992.4,0.4769]
[1760902897301,3.169,3992.5,3992.4,2.98165904]
[1760902899008,3.169,3992.5,3992.4,0.002]
[1760902899311,3.57802135,3992.5,3992.4,0.002]
[1760902899818,3.169,3992.5,3992.4,2.50675904]
[1760902899994,3.169,3992.5,3992.4,2.98165904]
[1760902900200,3.169,3992.5,3992.4,3.10645904]
[1760902902315,3.56182095,3992.5,3992.4,3.10645904]
[1760902905690,3.169,3992.5,3992.4,3.10645904]
[1760902907817,3.17,3992.5,3992.4,3.10645904]
[1760902908714,3.17,3992.5,3992.4,6.87086522]
[1760902920322,3.17,3992.5,3992.4,7.50446522]
[1760902922218,0.001,3992.5,3992.4,7.50446522]
[1760902923028,0.001,3992.5,3992.4,7.60486922]
[1760902924310,0.001,3992.8,3992.4,7.60486922]
[1760902924311,1e-08,3992.8,3992.7,2.50457084]
[1760902924599,1e-08,3992.8,3992.7,7.33408966]
[1760902924806,1e-08,3992.8,3992.7,7.80898966]
[1760902925011,1e-08,3992.8,3992.7,7.90937728]
[1760902925927,1e-08,3992.8,3992.7,2.72975846]
[1760902926133,0.16160001,3992.8,3992.7,2.62937084]
[1760902927226,0.16160001,3992.8,3992.7,2.50457084]
[1760902927227,3.32860001,3992.8,3992.7,2.50457084]
[1760902928111,3.37224434,3992.8,3992.7,2.50457084]
[1760902928620,3.32860001,3992.8,3992.7,2.50457084]
[1760902929019,3.72140145,3992.8,3992.7,2.50457084]
[1760902929425,3.32860001,3992.8,3992.7,2.50457084]
[1760902931934,3.32860001,3992.8,3992.6,2.5046232]
[1760902932141,0.1698,3992.7,3992.5,2.50468289]
[1760902932436,0.1698,3992.6,3992.5,2.5046963]
[1760902934921,0.39281323,3992.7,3992.6,2.50463357]
[1760902935543,0.56261323,3992.7,3992.6,2.50463357]
[1760902936907,0.1698,3992.7,3992.6,2.50463357]
[1760902937112,0.1698,3992.7,3992.6,2.62943357]
[1760902939406,0.1698,3992.7,3992.6,0.1248]
[1760902940011,0.1698,3992.7,3992.4,0.002]
[1760902940012,0.18838827,3992.7,3992.4,0.002]
[1760902940211,0.1698,3992.6,3992.4,0.1268]
[1760902940607,0.01858827,3992.7,3992.4,0.1268]
[1760902940841,0.1698,3992.5,3992.4,0.1268]
[1760902941216,0.1698,3992.5,3992.4,0.002]
[1760902941412,0.46560883,3992.7,3992.4,0.002]
[1760902941708,0.63540883,3992.7,3992.4,0.002]
[1760902941912,0.1698,3992.6,3992.4,0.002]
[1760902942341,0.46560883,3992.7,3992.4,0.002]
[1760902942840,0.63540883,3992.7,3992.4,0.002]
[1760902944341,1.0282397,3992.7,3992.4,0.002]
[1760902944511,0.1698,3992.6,3992.4,0.002]
[1760902945348,0.1698,3992.5,3992.4,0.002]
[1760902949079,0.51763087,3992.7,3992.4,0.002]
[1760902949370,0.51763087,3992.7,3992.4,2.9579492]
[1760902949870,0.51763087,3992.7,3992.4,2.5067492]
[1760902950258,0.51763087,3992.7,3992.4,0.002]
[1760902951041,0.39283087,3992.7,3992.4,2.50673124]
[1760902951347,0.39283087,3992.7,3992.4,2.95793124]
[1760902951547,3.16700001,3992.8,3992.4,2.95793124]
[1760902952565,3.16700001,3992.8,3992.5,2.50468414]
[1760902952772,3.16700001,3992.8,3992.5,3.76440618]
[1760902953064,3.16700001,3992.8,3992.5,6.26909995]
[1760902953966,3.16700001,3992.8,3992.6,2.50462163]
[1760902956564,3.16700001,3992.8,3992.5,4.21560618]
[1760902956869,3.16700001,3992.8,3992.5,6.72029549]
[1760902957568,3.16700001,3992.8,3992.5,6.26909549]
[1760902957739,3.16700001,3992.8,3992.5,6.71539549]
[1760902958268,3.16700001,3992.8,3992.5,6.26909549]
[1760902958650,3.16700001,3992.8,3992.6,3.76640618]
[1760902959471,3.21064792,3992.8,3992.6,3.76640618]
[1760902961841,3.21064792,3992.8,3992.6,6.27103962]
[1760902962046,3.21064792,3992.8,3992.6,6.71733962]
[1760902963575,3.21064792,3992.8,3992.7,2.50457084]
[1760902964477,3.21064792,3992.8,3992.7,6.26897702]
[1760902965379,3.21064792,3992.8,3992.7,6.71527702]
[1760902967379,3.21064792,3992.8,3992.7,6.26897702]
[1760902967579,3.21064792,3992.8,3992.7,3.76440618]
[1760902967882,3.38364792,3992.8,3992.7,3.76440618]
[1760902972600,3.38404792,3992.8,3992.7,3.76440618]
[1760902974358,3.21064792,3992.8,3992.7,3.76440618]
[1760902976254,3.21064792,3992.8,3992.6,0.1268]
[1760902976987,3.36654792,3992.8,3992.6,0.1268]
[1760902978359,0.1567,3992.7,3992.6,0.1268]
[1760902981987,0.1567,3992.7,3992.6,3.89120618]
[1760902987102,3.21064792,3992.8,3992.7,2.50457084]
[1760902987268,3.21064792,3992.8,3992.7,6.86144292]
[1760902989905,3.21064792,3992.8,3992.6,0.002]
[1760902990108,3.37934792,3992.8,3992.6,0.002]
[1760902990405,3.21064792,3992.8,3992.6,0.002]
[1760902990577,3.21064792,3992.8,3992.7,0.4364]
[1760902990983,3.21064792,3992.8,3992.7,2.94097084]
[1760902992487,3.21064792,3992.8,3992.7,2.50457084]
[1760902993418,3.21064792,3992.8,3992.6,2.50658716]
[1760902993731,3.21064792,3992.8,3992.7,2.50457084]
[1760903000452,3.21064792,3992.8,3992.7,2.93967084]
[1760903001402,3.21064792,3992.8,3992.7,2.50457084]
[1760903001603,3.21064792,3992.8,3992.7,3.06447084]
[1760903005637,3.21064792,3992.8,3992.7,6.82887702]
[1760903007162,0.04364792,3992.8,3992.7,6.82887702]
[1760903007565,3.16300001,3992.8,3992.7,6.82887702]
[1760903011943,1e-08,3992.8,3992.7,7.46247702]
[1760903013537,1e-08,3992.8,3992.7,7.56286892]
[1760903019783,0.04363953,3992.8,3992.7,7.56286892]
[1760903020152,1e-08,3992.8,3992.7,7.56286892]
[1760903021962,1e-08,3992.8,3992.7,7.46247702]
[1760903025755,1e-08,3992.8,3992.7,12.16656429]
[1760903028267,1e-08,3992.8,3992.7,11.73146429]
[1760903029873,0.04363972,3992.8,3992.7,11.73146429]
[1760903030179,1e-08,3992.8,3992.7,11.73146429]
[1760903030804,1e-08,3992.8,3992.7,12.19996429]
[1760903031506,1e-08,3992.8,3992.7,11.73146429]
[1760903033212,1e-08,3992.8,3992.7,12.19996429]
[1760903033628,1e-08,3992.8,3992.7,11.73146429]
[1760903033924,1e-08,3992.8,3992.7,11.90166429]
[1760903039812,0.04363963,3992.8,3992.7,11.90166429]
[1760903040322,1e-08,3992.8,3992.7,11.90166429]
[1760903044335,0.39130001,3992.8,3992.6,0.002]
[1760903044702,0.22160001,3992.8,3992.6,0.002]
[1760903044903,0.22160001,3992.8,3992.7,2.50457084]
[1760903045119,0.39130001,3992.8,3992.7,2.50457084]
[1760903046735,0.22160001,3992.8,3992.7,2.50457084]
[1760903047030,0.39130001,3992.8,3992.7,2.50457084]
[1760903047935,0.4349444,3992.8,3992.7,2.50457084]
[1760903048504,0.0436444,3992.8,3992.7,2.52961654]
[1760903049121,1e-08,3992.8,3992.7,2.50457084]
[1760903050408,1e-08,3992.8,3992.7,2.93337084]
[1760903051739,1e-08,3992.8,3992.7,3.56697084]
[1760903051942,1e-08,3992.8,3992.7,3.59201654]
[1760903053819,1e-08,3992.8,3992.7,3.13817084]
[1760903054140,1e-08,3992.8,3992.7,2.50457084]
[1760903054339,1e-08,3992.8,3992.7,2.62937084]
[1760903055423,1e-08,3992.8,3992.7,6.39377702]
[1760903058244,1e-08,3992.8,3992.7,6.57177702]
[1760903058748,0.17480001,3992.8,3992.7,6.57177702]
[1760903059956,0.21844198,3992.8,3992.7,6.57177702]
[1760903060360,0.17480001,3992.8,3992.7,6.57177702]
[1760903060766,1e-08,3992.8,3992.7,6.57177702]
[1760903060944,0.17480001,3992.8,3992.7,6.57177702]
[1760903063230,0.21844208,3992.8,3992.7,6.57177702]
[1760903063457,0.17480001,3992.8,3992.7,6.57177702]
[1760903064688,0.17480001,3992.8,3992.6,0.002]
[1760903065690,1e-08,3992.8,3992.7,2.50457084]
[1760903066270,0.17480001,3992.8,3992.7,2.50457084]
[1760903066693,1e-08,3992.8,3992.7,2.50457084]
[1760903066993,0.17480001,3992.8,3992.7,2.50457084]
[1760903068264,0.21844581,3992.8,3992.7,2.50457084]
[1760903068497,0.04364581,3992.8,3992.7,2.50457084]
[1760903068697,0.04364581,3992.8,3992.7,6.42413494]
[1760903069394,0.21884581,3992.8,3992.7,2.50457084]
[1760903069896,0.04364581,3992.8,3992.7,2.50457084]
[1760903070392,0.04364581,3992.8,3992.7,2.52961654]
[1760903070629,0.04364581,3992.8,3992.7,2.62937084]
[1760903070778,0.04364581,3992.8,3992.7,2.80457084]
[1760903075409,0.21594581,3992.8,3992.7,2.80457084]
[1760903075838,0.21594581,3992.8,3992.7,6.56897702]
[1760903078613,0.04364581,3992.8,3992.7,6.56897702]
[1760903079008,0.21634581,3992.8,3992.7,6.56897702]
[1760903081614,0.04364581,3992.8,3992.7,6.56897702]
[1760903092826,0.04364581,3992.8,3992.7,3.88920618]
[1760903093022,0.04364581,3992.8,3992.7,6.39377702]
[1760903096211,0.21594581,3992.8,3992.7,3.88920618]
[1760903096414,0.57590039,3992.8,3992.7,3.76440618]
[1760903103639,0.57590039,3992.8,3992.7,6.26897702]
[1760903104051,0.57590039,3992.8,3992.7,3.76440618]
[1760903106162,0.57590039,3992.8,3992.6,0.002]
[1760903106163,3.22380468,3992.8,3992.6,0.002]
[1760903106362,1.05229688,3992.7,3992.6,0.002]
[1760903106671,3.55686772,3992.7,3992.6,0.002]
[1760903107140,3.72956772,3992.7,3992.6,0.002]
[1760903108568,1.22499688,3992.7,3992.6,0.002]
[1760903108971,1.05229688,3992.7,3992.6,0.002]
[1760903109863,1.22499688,3992.7,3992.6,0.002]
[1760903110551,0.1727,3992.7,3992.6,0.002]
[1760903111152,0.21635053,3992.7,3992.6,0.002]
[1760903112302,2.73950964,3992.7,3992.6,0.002]
[1760903113888,2.67727084,3992.7,3992.6,0.002]
[1760903117799,0.1727,3992.7,3992.6,0.002]
[1760903117997,0.94241042,3992.7,3992.6,0.002]
[1760903118500,0.76971042,3992.7,3992.6,0.002]
[1760903119866,0.94241042,3992.7,3992.6,0.002]
[1760903120068,3.44698126,3992.7,3992.6,0.002]
[1760903120267,0.94241042,3992.7,3992.6,0.002]
[1760903120582,0.87015047,3992.7,3992.6,0.002]
[1760903120773,0.10044005,3992.7,3992.6,0.002]
[1760903122707,2.60501089,3992.7,3992.6,0.002]
[1760903124316,0.10044005,3992.7,3992.6,0.002]
[1760903124821,3.158,3992.7,3992.6,0.002]
[1760903124998,3.2828,3992.7,3992.6,0.4631]
[1760903127018,3.61118,3992.7,3992.6,0.002]
[1760903127220,3.76998,3992.7,3992.6,0.002]
[1760903128118,3.61118,3992.7,3992.6,0.002]
[1760903129020,3.62976827,3992.7,3992.6,0.002]
[1760903130128,3.67341936,3992.7,3992.6,0.002]
[1760903130315,3.78856827,3992.7,3992.6,0.002]
[1760903130710,6.29313911,3992.7,3992.6,0.002]
[1760903130891,6.27455084,3992.7,3992.6,0.002]
[1760903131739,27.08399182,3992.7,3992.6,0.002]
[1760903131913,27.40241474,3992.7,3992.6,0.002]
[1760903132243,19.10440172,3992.7,3992.6,0.002]
[1760903133637,8.46869772,3992.7,3992.6,0.002]
[1760903133839,10.73408372,3992.7,3992.6,0.002]
[1760903134015,11.58084772,3992.7,3992.6,0.002]
[1760903134809,15.91485672,3992.7,3992.6,0.002]
[1760903135909,11.42757972,3992.7,3992.6,0.002]
[1760903136144,10.83372672,3992.7,3992.6,0.002]
[1760903136926,12.80643372,3992.7,3992.6,0.002]
[1760903137134,12.52020772,3992.7,3992.6,0.002]
[1760903137849,8.46869772,3992.7,3992.6,0.002]
[1760903138024,13.53227672,3992.7,3992.6,0.002]
[1760903138220,11.97227672,3992.7,3992.6,0.002]
[1760903138447,11.00944972,3992.7,3992.6,0.002]
[1760903138849,26.71203172,3992.7,3992.6,0.002]
[1760903139932,38.46869772,3992.7,3992.6,0.002]
[1760903140133,38.78712064,3992.7,3992.6,0.002]
[1760903140848,8.78712064,3992.7,3992.6,0.002]
[1760903141162,38.78712064,3992.7,3992.6,0.002]
[1760903141950,35.11049264,3992.7,3992.6,0.002]
[1760903142247,35.74409264,3992.7,3992.6,0.002]
[1760903143019,39.42072064,3992.7,3992.6,0.002]
[1760903144922,9.42072064,3992.7,3992.6,0.002]
[1760903145122,39.42072064,3992.7,3992.6,0.002]
[1760903145357,37.36604664,3992.7,3992.6,0.002]
[1760903146152,39.42072064,3992.7,3992.6,0.002]
[1760903147242,38.06264464,3992.7,3992.6,0.002]
[1760903148150,39.42072064,3992.7,3992.6,0.002]
[1760903148834,28.12304772,3992.7,3992.6,0.002]
[1760903149160,36.08471372,3992.7,3992.6,0.002]
[1760903149660,25.48821572,3992.7,3992.6,0.002]
[1760903150027,9.10229772,3992.7,3992.6,0.002]
[1760903150226,27.14765172,3992.7,3992.6,0.002]
[1760903151261,29.77659472,3992.7,3992.6,0.002]
[1760903151637,12.68791214,3992.7,3992.6,0.002]
[1760903151959,15.84591214,3992.7,3992.6,0.002]
[1760903152166,17.71217314,3992.7,3992.6,0.002]
[1760903153164,17.87208814,3992.7,3992.6,0.002]
[1760903153462,18.23778312,3992.7,3992.6,0.002]
[1760903154246,26.26758512,3992.7,3992.6,0.002]
[1760903154575,24.25668512,3992.7,3992.6,0.002]
[1760903154774,23.43708512,3992.7,3992.6,0.002]
[1760903154944,20.47421212,3992.7,3992.6,0.002]
[1760903155141,20.65721212,3992.7,3992.6,0.002]
[1760903155977,20.26811212,3992.7,3992.6,0.002]
[1760903156154,10.27098412,3992.7,3992.6,0.002]
[1760903156354,28.67115712,3992.7,3992.6,0.002]
[1760903156776,18.69668612,3992.7,3992.6,0.002]
[1760903156967,19.08578612,3992.7,3992.6,0.002]
[1760903157397,33.08292112,3992.7,3992.6,0.002]
[1760903158249,40.66008412,3992.7,3992.6,0.002]
[1760903158659,39.63176612,3992.7,3992.6,0.002]
[1760903159382,40.66008412,3992.7,3992.6,0.002]
[1760903159879,37.32916112,3992.7,3992.6,0.002]
[1760903160085,36.63253912,3992.7,3992.6,0.002]
[1760903160253,10.66008412,3992.7,3992.6,0.002]
[1760903160450,37.25184212,3992.7,3992.6,0.002]
[1760903160674,37.25184212,3992.7,3992.2,0.002]
[1760903160675,30.6336,3992.5,3992.2,0.002]
[1760903160875,39.5720573,3992.3,3992.2,0.002]
[1760903161053,34.7233795,3992.2,3992.1,1e-08]
[1760903161273,34.8937795,3992.2,3992.1,1e-08]
[1760903161899,30.05158277,3991.9,3991.1,0.225]
[1760903162202,35.99447719,3991.9,3991.1,0.225]
[1760903162408,46.31944013,3991.9,3991.1,0.225]
[1760903162590,46.54444013,3991.9,3991.1,0.225]
[1760903163373,46.54444013,3991.9,3989.8,0.2361]
[1760903163599,46.54444013,3991.9,3991.0,0.46]
[1760903163816,46.93745294,3991.9,3991.0,0.46]
[1760903166209,46.93745294,3991.9,3989.8,0.2361]
[1760903166416,46.93745294,3991.9,3990.8,0.438]
[1760903166417,46.54444013,3991.9,3990.8,0.438]
[1760903166583,46.54444013,3991.9,3991.0,0.438]
[1760903168510,16.54444013,3991.9,3991.0,0.438]
[1760903168812,46.54444013,3991.9,3991.0,0.438]
[1760903169188,46.54444013,3991.9,3991.2,0.438]
[1760903169418,16.9374483,3991.9,3991.2,0.438]
[1760903169589,46.9374483,3991.9,3991.2,0.438]
[1760903171383,16.9374483,3991.9,3991.2,0.438]
[1760903171581,46.9374483,3991.9,3991.2,0.438]
[1760903172284,46.7165483,3991.9,3991.1,0.2287]
[1760903172480,46.7165483,3991.9,3991.3,0.4378]
[1760903172888,46.76022301,3991.9,3991.3,0.4378]
[1760903173379,46.76022301,3991.9,3991.1,0.2287]
[1760903173582,46.76022301,3991.9,3991.1,0.6665]
[1760903173917,46.76122301,3991.9,3991.1,0.6665]
[1760903174083,46.76122301,3991.9,3991.4,0.002]
[1760903174284,46.7175483,3991.9,3991.4,0.002]
[1760903177707,46.76122348,3991.9,3991.4,0.002]
[1760903179646,16.76122348,3991.9,3991.4,0.002]
[1760903179851,46.76122348,3991.9,3991.4,0.002]
[1760903180143,46.58422348,3991.9,3991.4,0.4398]
[1760903180346,46.76162348,3991.9,3991.4,0.4398]
[1760903180864,45.98204073,3991.9,3991.4,0.4398]
[1760903181619,45.48621781,3991.9,3991.4,0.4398]
[1760903182048,4.86673552,3991.8,3991.7,1e-08]
[1760903182225,37.86434444,3991.8,3991.7,1e-08]
[1760903182444,42.71902935,3991.5,3991.4,0.002]
[1760903182760,46.24272433,3991.5,3991.4,0.002]
[1760903182931,46.42012433,3991.5,3991.4,0.002]
[1760903183124,3.1391749,3991.1,3991.0,0.002]
[1760903183324,40.24181594,3991.1,3991.0,0.002]
[1760903183523,42.31692265,3991.1,3991.0,0.002]
[1760903183734,42.75472265,3991.1,3991.0,0.002]
[1760903184430,42.93212265,3991.1,3991.0,0.002]
[1760903184630,45.43923659,3991.1,3991.0,0.002]
[1760903185034,45.43923659,3991.1,3989.0,2.74153733]
[1760903185035,1.728,3989.9,3989.0,0.2347]
[1760903185350,7.39232847,3989.9,3989.0,2.74153261]
[1760903185850,7.39232847,3989.9,3989.8,0.6739]
[1760903186744,4.886,3989.9,3989.8,0.6739]
[1760903186939,1.728,3989.9,3989.8,0.6739]
[1760903187140,4.886,3989.9,3989.8,0.6739]
[1760903188350,4.92968366,3989.9,3989.8,0.6739]
[1760903191740,4.92968366,3989.9,3989.8,0.6759]
[1760903194981,5.05448366,3989.9,3989.8,0.6759]
[1760903195761,5.05448366,3989.9,3989.8,0.6994]
[1760903196061,5.05448366,3989.9,3989.8,0.002]
[1760903196262,7.51712847,3989.9,3989.8,0.002]
[1760903196426,8.91207099,3989.9,3989.8,0.002]
[1760903196627,12.83812376,3989.9,3989.8,0.002]
[1760903197060,13.20381874,3989.9,3989.8,0.002]
[1760903197361,13.38161874,3989.9,3989.8,0.002]
[1760903197564,13.20381874,3989.9,3989.8,0.002]
[1760903198461,13.83361874,3989.9,3989.8,0.002]
[1760903199374,22.41875774,3989.9,3989.8,0.002]
[1760903199875,22.46244564,3989.9,3989.8,0.002]
[1760903200243,25.84689164,3989.9,3989.8,0.002]
[1760903201378,26.58050579,3989.9,3989.8,0.002]
[1760903202383,27.75980579,3989.9,3989.8,0.002]
[1760903203379,36.11750079,3989.9,3989.8,0.002]
[1760903204251,37.98644179,3989.9,3989.8,0.002]
[1760903205245,40.90327679,3989.9,3989.8,0.002]
[1760903205451,40.85958889,3989.9,3989.8,0.002]
[1760903205974,25.19766497,3989.9,3989.8,0.002]
[1760903206171,9.91136597,3989.9,3989.8,0.002]
[1760903206374,16.17091497,3989.9,3989.8,0.002]
[1760903206578,15.82637797,3989.9,3989.8,0.4633]
[1760903206884,15.82637797,3989.9,3989.8,0.002]
[1760903207386,21.55211897,3989.9,3989.8,0.002]
[1760903207804,22.01341897,3989.9,3989.8,0.002]
[1760903208390,23.26018284,3989.9,3989.8,0.002]
[1760903209371,23.26043384,3989.9,3989.8,0.002]
[1760903210262,23.65359362,3989.9,3989.8,0.002]
[1760903210465,28.95188562,3989.9,3989.8,0.002]
[1760903210772,29.13958562,3989.9,3989.8,0.002]
[1760903211592,30.06473062,3989.9,3989.8,0.002]
[1760903212509,30.16473062,3989.9,3989.8,0.002]
[1760903214720,30.12103975,3989.9,3989.8,0.002]
[1760903215530,29.93333975,3989.9,3989.8,0.002]
[1760903215708,34.92196475,3989.9,3989.8,0.002]
[1760903216321,35.24038767,3989.9,3989.8,0.002]
[1760903216738,41.27194867,3989.9,3989.8,0.002]
[1760903218129,40.92248288,3989.9,3989.8,0.002]
[1760903220498,14.77402411,3989.1,3989.0,0.002]
[1760903220700,26.41627886,3989.1,3989.0,0.002]
[1760903221121,27.06527886,3989.1,3989.0,0.002]
[1760903221856,31.28083286,3989.1,3989.0,0.002]
[1760903222057,31.67405724,3989.1,3989.0,0.002]
[1760903222257,31.91037318,3989.1,3989.0,0.002]
[1760903222567,31.72267318,3989.1,3989.0,0.002]
[1760903222750,2.50758544,3987.9,3987.8,0.2238]
[1760903222953,7.39358544,3987.9,3987.8,0.2238]
[1760903223344,7.39358544,3987.9,3987.8,0.6851]
[1760903224049,1.728,3987.8,3987.2,0.46371464]
[1760903224244,6.486013,3987.8,3987.3,0.4613]
[1760903224444,1.728,3987.5,3987.3,0.4613]
[1760903224650,3.158,3987.4,3987.3,0.4613]
[1760903226250,3.158,3987.4,3987.3,0.4633]
[1760903227262,3.158,3987.4,3987.3,2.97126278]
[1760903227762,3.158,3987.4,3987.3,0.4633]
[1760903231556,3.20170356,3987.4,3987.3,0.4633]
[1760903232805,3.32650356,3987.4,3987.3,0.4633]
[1760903235887,3.32650356,3987.4,3987.3,2.97126278]
[1760903236086,0.04370356,3987.4,3987.3,6.89731555]
[1760903236285,3.20270356,3987.4,3987.3,7.02211555]
[1760903236526,3.20270356,3987.4,3987.3,3.09606278]
[1760903239236,3.159,3987.4,3987.3,3.09606278]
[1760903240809,3.159,3987.4,3987.3,2.97126278]
[1760903242035,3.159,3987.6,3987.4,2.50789988]
[1760903242240,2.50708574,3988.7,3987.9,2.50757662]
[1760903242436,3.12058827,3988.6,3988.0,2.50752045]
[1760903244040,0.04369773,3988.5,3988.0,2.50752045]
[1760903244229,0.04369773,3988.5,3988.1,0.4496]
[1760903244413,3.12058827,3988.6,3988.0,2.50752045]
[1760903245133,3.47439174,3988.6,3987.8,2.95721656]
[1760903245636,5.98154908,3988.6,3987.8,2.95721656]
[1760903246536,6.16854908,3988.6,3987.8,2.95721656]
[1760903246736,6.16854908,3988.6,3987.8,2.95722598]
[1760903247239,0.20558827,3988.5,3987.8,2.95722598]
[1760903247445,2.75649854,3988.5,3987.8,0.4496]
[1760903247650,2.56949854,3988.5,3987.7,2.5077082]
[1760903248422,2.56949854,3988.5,3987.7,2.9573082]
[1760903248624,2.75649854,3988.5,3987.7,2.9573082]
[1760903248924,0.24928585,3988.5,3987.8,2.50762319]
[1760903249515,0.23069758,3988.5,3987.8,2.95722319]
[1760903249923,0.23069758,3988.5,3987.8,0.4496]
[1760903250125,0.187,3988.5,3987.8,0.4496]
[1760903250310,0.187,3988.5,3987.8,2.95724679]
[1760903250713,0.1248,3988.4,3987.8,2.95724679]
[1760903251741,0.04369772,3988.3,3987.8,6.72165297]
[1760903251926,0.04369772,3988.3,3987.9,2.95717997]
[1760903252948,0.04369772,3988.3,3987.8,6.27204207]
[1760903253130,0.04369772,3988.3,3987.9,0.4496]
[1760903255165,0.06228599,3988.3,3987.9,0.4496]
[1760903255661,0.06228599,3988.3,3987.9,0.4447]
[1760903255959,0.04369772,3988.3,3987.9,0.4447]
[1760903256843,0.23069772,3988.3,3987.8,3.76440618]
[1760903257463,0.04369772,3988.3,3987.9,0.4447]
[1760903257678,0.04369772,3988.3,3988.2,0.2221]
[1760903257968,3.20169772,3988.3,3988.2,0.2221]
[1760903258267,3.20169772,3988.3,3988.2,0.6668]
[1760903259049,3.20169772,3988.3,3988.0,6.39668431]
[1760903259271,3.20169772,3988.3,3988.1,0.4447]
[1760903260192,3.20169772,3988.3,3988.0,3.88920618]
[1760903260350,3.20169772,3988.3,3988.1,0.4447]
[1760903260548,3.20169772,3988.3,3988.0,3.88920618]
[1760903260786,3.20169772,3988.3,3988.1,0.4447]
[1760903260988,3.20169772,3988.3,3988.2,2.95209682]
[1760903261276,3.158,3988.3,3988.2,2.95209682]
[1760903261484,3.158,3988.3,3988.0,0.1248]
[1760903261643,3.158,3988.3,3988.0,0.4447]
[1760903261848,3.158,3988.3,3988.0,2.9522106]
[1760903262269,3.158,3988.3,3988.1,0.4447]
[1760903262473,3.158,3988.3,3988.2,2.50739682]
[1760903262794,3.158,3988.3,3988.2,2.95209682]
[1760903263008,0.001,3989.0,3988.2,0.4447]
[1760903263185,2.291,3988.9,3988.8,2.50696001]
[1760903263506,2.291,3988.9,3988.8,2.95166001]
[1760903264066,2.291,3988.9,3988.8,0.4447]
[1760903264294,2.291,3988.9,3988.7,2.50705381]
[1760903264502,2.291,3988.9,3988.7,2.95175381]
[1760903265198,2.291,3988.9,3988.7,0.4447]
[1760903265406,2.291,3988.9,3988.7,2.95175104]
[1760903265592,2.291,3988.9,3988.8,2.50701965]
[1760903265764,2.291,3988.9,3988.8,2.95171965]